[Event "World Senior chT-65 2019"]
[Site "Rhodes"]
[Date "2019.04.20"]
[Round "5.40"]
[White "Kauko, Pekka"]
[Black "Schrickx, Frank"]
[Result "0-1"]
[ECO "D02"]
[WhiteElo "1902"]
[BlackElo "1823"]
[Annotator "NA"]
[PlyCount "110"]
[EventDate "2019.04.16"]
[EventType "team-tourn"]
[EventCountry "GRE"]
[SourceTitle "playchess.com"]
[Source "ChessBase"]
[SourceQuality "1"]
[WhiteTeam "Finland"]
[BlackTeam "Belgium"]
[WhiteTeamCountry "FIN"]
[BlackTeamCountry "BEL"]
[TimeControl "40/5400+30:1800+30"]

1. Nf3 {[%emt 0:00:00]} d5 {[%emt 0:00:00]} 2. d4 {[%emt 0:00:00]} Nf6 {[%emt 0:00:03]} 3. a4 {[%emt 0:00:00]} g6 {[%emt 0:02:04]} 4. Nbd2 {[%emt 0:00:24]} Bg7 {[%emt 0:00:49]} 5. e3 {[%emt 0:00:11]} O-O {[%emt 0:01:28]} 6. Bd3 {[%emt 0:00:29]} c5 {[%emt 0:01:54]} 7. b3 {[%emt 0:01:34]} cxd4 {[%emt 0:00:54]} 8. exd4 {[%emt 0:00:03]} Bg4 {[%emt 0:01:17]} 9. O-O {[%emt 0:00:54]} Nc6 {[%emt 0:00:46]} 10. c3 {[%emt 0:00:36]} e5 {[%emt 0:01:38]} 11. dxe5 {[%emt 0:02:15]} Nxe5 {[%emt 0:00:09]} 12. Be2 {[%emt 0:00:53]} Nxf3+ {[%emt 0:02:47]} 13. Bxf3 {[%emt 0:01:29]} Bxf3 {[%emt 0:01:24]} 14. Qxf3 {[%emt 0:01:20]} Re8 {[%emt 0:02:48]} 15. Ra2 {[%emt 0:03:05]} Rc8 {[%emt 0:03:10]} 16. c4 {[%emt 0:00:56]} Qa5 {[%emt 0:20:09]} 17. h3 {[%emt 0:05:12]} Re6 {[%emt 0:03:20]} 18. cxd5 {[%emt 0:03:29]} Qxd5 {[%emt 0:01:18]} 19. Qxd5 {[%emt 0:00:21]} Nxd5 {[%emt 0:01:32]} 20. Nc4 {[%emt 0:00:43]} Nc3 {[%emt 0:04:59]} 21. Rc2 {[%emt 0:00:35]} Ne2+ {[%emt 0:00:25]} 22. Kh1 {[%emt 0:00:52]} Nxc1 {[%emt 0:00:31]} 23. Rfxc1 {[%emt 0:00:04]} b6 {[%emt 0:04:00]} 24. g3 {[%emt 0:02:05]} Bf8 {[%emt 0:00:59]} 25. Rd1 {[%emt 0:00:38]} a6 {[%emt 0:03:00]} 26. Rcd2 {[%emt 0:01:02]} Bc5 {[%emt 0:03:12]} 27. f4 {[%emt 0:02:05]} Rce8 {[%emt 0:05:44]} 28. Ne5 {[%emt 0:02:57]} f6 {[%emt 0:02:37]} 29. Ng4 {[%emt 0:00:54]} Re1+ {[%emt 0:01:46]} 30. Rxe1 {[%emt 0:03:21]} Rxe1+ {[%emt 0:00:03]} 31. Kg2 {[%emt 0:00:28]} Kf7 {[%emt 0:04:02]} 32. Kf3 {[%emt 0:02:35]} h5 {[%emt 0:03:04]} 33. Nf2 {[%emt 0:02:05]} Re3+ {[%emt 0:00:28]} 34. Kg2 {[%emt 0:00:07]} Rxb3 {[%emt 0:00:53]} 35. Ne4 {[%emt 0:01:00]} Be7 {[%emt 0:02:11]} 36. Nd6+ {[%emt 0:02:00]} Ke6 {[%emt 0:01:21]} 37. Nc8 {[%emt 0:03:49]} Bc5 {[%emt 0:00:38]} 38. Rc2 {[%emt 0:00:53]} Kd7 {[%emt 0:01:12]} 39. Na7 {[%emt 0:01:54]} Ra3 {[%emt 0:02:29]} 40. Rc4 {[%emt 0:00:00]} Kc7 {[%emt 0:00:00]} 41. f5 {[%emt 0:03:02]} g5 {[%emt 0:04:36]} 42. Re4 {[%emt 0:01:12]} Ra2+ {[%emt 0:01:30]} 43. Kh1 {[%emt 0:00:52]} Kb7 {[%emt 0:00:55]} 44. Re6 {[%emt 0:00:56]} Kxa7 {[%emt 0:00:21]} 45. Rxf6 {[%emt 0:00:39]} Rxa4 {[%emt 0:00:40]} 46. Rh6 {[%emt 0:00:34]} h4 {[%emt 0:02:34]} 47. Rh7+ {[%emt 0:00:34]} Kb8 {[%emt 0:00:07]} 48. Kg2 {[%emt 0:02:07]} hxg3 {[%emt 0:00:56]} 49. Rg7 {[%emt 0:00:34]} Rf4 {[%emt 0:02:27]} 50. Rxg5 {[%emt 0:00:21]} a5 {[%emt 0:00:26]} 51. Kxg3 {[%emt 0:00:56]} Rf1 {[%emt 0:00:25]} 52. h4 {[%emt 0:00:35]} a4 {[%emt 0:00:20]} 53. h5 {[%emt 0:04:00]} a3 {[%emt 0:01:40]} 54. h6 {[%emt 0:00:03]} Rg1+ {[%emt 0:02:21]} 55. Kh4 {[%emt 0:01:56]} Rh1+ {[%emt 0:00:37]} 0-1

[Event "World Senior chT-65 2019"]
[Site "Rhodes"]
[Date "2019.04.20"]
[Round "5.41"]
[White "Scrimgour, Alan"]
[Black "Carlsten, Peter"]
[Result "1/2-1/2"]
[ECO "C41"]
[WhiteElo "2087"]
[BlackElo "2002"]
[Annotator "NA"]
[PlyCount "29"]
[EventDate "2019.04.16"]
[EventType "team-tourn"]
[EventCountry "GRE"]
[SourceTitle "playchess.com"]
[Source "ChessBase"]
[SourceQuality "1"]
[WhiteTeam "Scotland"]
[BlackTeam "Sweden"]
[WhiteTeamCountry "SCO"]
[BlackTeamCountry "SWE"]
[TimeControl "40/5400+30:1800+30"]

1. e4 {[%emt 0:00:00]} d6 {[%emt 0:00:27]} 2. d4 {[%emt 0:00:00]} Nf6 {[%emt 0:00:08]} 3. Nc3 {[%emt 0:00:00]} e5 {[%emt 0:00:05]} 4. Nf3 {[%emt 0:00:00]} Nbd7 {[%emt 0:00:04]} 5. g3 {[%emt 0:00:25]} Be7 {[%emt 0:00:26]} 6. Bg2 {[%emt 0:00:07]} O-O {[%emt 0:00:16]} 7. O-O {[%emt 0:00:08]} c6 {[%emt 0:01:07]} 8. a4 {[%emt 0:02:51]} b6 {[%emt 0:03:08]} 9. Re1 {[%emt 0:01:43]} a6 {[%emt 0:01:54]} 10. b3 {[%emt 0:08:11]} Re8 {[%emt 0:02:09]} 11. Bb2 {[%emt 0:03:25]} Qc7 {[%emt 0:01:20]} 12. Qd2 {[%emt 0:06:31]} Bb7 {[%emt 0:00:40]} 13. Rad1 {[%emt 0:07:08]} b5 {[%emt 0:03:58]} 14. axb5 {[%emt 0:11:52]} axb5 {[%emt 0:12:16]} 15. dxe5 {[%emt 0:06:41]} 1/2-1/2

[Event "World Senior chT-65 2019"]
[Site "Rhodes"]
[Date "2019.04.20"]
[Round "5.42"]
[White "Gustavsson, Sture"]
[Black "White, Alastair F"]
[Result "*"]
[ECO "B07"]
[WhiteElo "1976"]
[BlackElo "2108"]
[Annotator "NA"]
[PlyCount "27"]
[EventDate "2019.04.16"]
[EventType "team-tourn"]
[EventCountry "GRE"]
[SourceTitle "playchess.com"]
[Source "ChessBase"]
[SourceQuality "1"]
[WhiteTeam "Sweden"]
[BlackTeam "Scotland"]
[WhiteTeamCountry "SWE"]
[BlackTeamCountry "SCO"]
[TimeControl "40/5400+30:1800+30"]

1. d4 {[%emt 0:00:00]} d6 {[%emt 0:00:00]} 2. e4 {[%emt 0:00:11]} Nf6 {[%emt 0:00:19]} 3. Nc3 {[%emt 0:00:09]} c6 {[%emt 0:03:17]} 4. Nf3 {[%emt 0:01:12]} b5 {[%emt 0:02:24]} 5. Bd3 {[%emt 0:01:42]} Bg4 {[%emt 0:01:07]} 6. O-O {[%emt 0:03:55]} Nbd7 {[%emt 0:03:15]} 7. Re1 {[%emt 0:01:31]} b4 {[%emt 0:02:37]} 8. Nb1 {[%emt 0:15:45]} e5 {[%emt 0:00:58]} 9. c3 {[%emt 0:01:39]} Be7 {[%emt 0:04:28]} 10. Be3 {[%emt 0:03:49]} bxc3 {[%emt 0:00:50]} 11. bxc3 {[%emt 0:00:43]} O-O {[%emt 0:00:15]} 12. Nbd2 {[%emt 0:00:33]} d5 {[%emt 0:00:49]} 13. h3 {[%emt 0:02:56]} exd4 {[%emt 0:11:36]} 14. cxd4 {[%emt 0:03:27]} *

[Event "World Senior chT-65 2019"]
[Site "Rhodes"]
[Date "2019.04.20"]
[Round "5.43"]
[White "Bhopal, Raj"]
[Black "Lundgren, Ulf"]
[Result "1-0"]
[ECO "C86"]
[WhiteElo "1900"]
[BlackElo "1964"]
[Annotator "NA"]
[PlyCount "85"]
[EventDate "2019.04.16"]
[EventType "team-tourn"]
[EventCountry "GRE"]
[SourceTitle "playchess.com"]
[Source "ChessBase"]
[SourceQuality "1"]
[WhiteTeam "Scotland"]
[BlackTeam "Sweden"]
[WhiteTeamCountry "SCO"]
[BlackTeamCountry "SWE"]
[TimeControl "40/5400+30:1800+30"]

1. e4 {[%emt 0:00:00]} e5 {[%emt 0:00:00]} 2. Nf3 {[%emt 0:00:00]} Nc6 {[%emt 0:00:00]} 3. Bb5 {[%emt 0:00:00]} a6 {[%emt 0:00:14]} 4. Ba4 {[%emt 0:00:00]} Nf6 {[%emt 0:00:10]} 5. O-O {[%emt 0:00:00]} b5 {[%emt 0:00:32]} 6. Bb3 {[%emt 0:00:00]} Be7 {[%emt 0:00:10]} 7. Qe2 {[%emt 0:00:30]} d6 {[%emt 0:00:49]} 8. c3 {[%emt 0:00:17]} O-O {[%emt 0:00:33]} 9. Rd1 {[%emt 0:00:40]} Bg4 {[%emt 0:01:11]} 10. h3 {[%emt 0:00:39]} Bh5 {[%emt 0:00:09]} 11. d3 {[%emt 0:00:39]} Na5 {[%emt 0:01:03]} 12. Bc2 {[%emt 0:00:10]} c5 {[%emt 0:00:15]} 13. Nbd2 {[%emt 0:00:52]} Nc6 {[%emt 0:00:34]} 14. Nf1 {[%emt 0:00:30]} b4 {[%emt 0:06:41]} 15. g4 {[%emt 0:02:15]} Bg6 {[%emt 0:00:15]} 16. Ng3 {[%emt 0:01:16]} a5 {[%emt 0:02:45]} 17. Nh4 {[%emt 0:03:17]} Ne8 {[%emt 0:03:47]} 18. Nhf5 {[%emt 0:00:29]} Bg5 {[%emt 0:00:28]} 19. Bxg5 {[%emt 0:13:05]} Qxg5 {[%emt 0:00:22]} 20. h4 {[%emt 0:00:36]} Qd8 {[%emt 0:05:17]} 21. Ba4 {[%emt 0:06:11]} Rc8 {[%emt 0:04:16]} 22. Kg2 {[%emt 0:07:52]} Bxf5 {[%emt 0:14:46]} 23. Nxf5 {[%emt 0:01:26]} g6 {[%emt 0:02:31]} 24. Nh6+ {[%emt 0:00:53]} Kg7 {[%emt 0:01:23]} 25. g5 {[%emt 0:00:30]} f6 {[%emt 0:01:21]} 26. h5 {[%emt 0:10:34]} fxg5 {[%emt 0:02:40]} 27. hxg6 {[%emt 0:01:55]} hxg6 {[%emt 0:04:16]} 28. Rh1 {[%emt 0:01:32]} Nf6 {[%emt 0:00:00]} 29. Qe3 {[%emt 0:09:55]} Nh5 {[%emt 0:02:03]} 30. Nf5+ {[%emt 0:02:57]} Kf6 {[%emt 0:04:46]} 31. Rxh5 {[%emt 0:02:59]} gxh5 {[%emt 0:00:52]} 32. Rh1 {[%emt 0:02:10]} Rh8 {[%emt 0:15:32]} 33. Ng3 {[%emt 0:01:59]} Kg6 {[%emt 0:00:36]} 34. Bb3 {[%emt 0:03:57]} Qf6 {[%emt 0:01:08]} 35. Nxh5 {[%emt 0:05:04]} Qf8 {[%emt 0:04:32]} 36. Qh3 {[%emt 0:03:48]} Re8 {[%emt 0:00:32]} 37. Ba4 {[%emt 0:03:17]} Qf7 {[%emt 0:18:43]} 38. Qf5+ {[%emt 0:01:41]} Qxf5 {[%emt 0:00:28]} 39. exf5+ {[%emt 0:00:10]} Kf7 {[%emt 0:00:57]} 40. Bxc6 {[%emt 0:00:00]} Rd8 {[%emt 0:00:00]} 41. Bd5+ {[%emt 0:00:25]} Kf8 {[%emt 0:02:47]} 42. c4 {[%emt 0:01:01]} Rd7 {[%emt 0:00:35]} 43. Nf6 {[%emt 0:00:46]} 1-0

[Event "World Senior chT-65 2019"]
[Site "Rhodes"]
[Date "2019.04.20"]
[Round "5.44"]
[White "Andersson, Sven-Olof"]
[Black "Dawson, Alastair"]
[Result "1-0"]
[ECO "E64"]
[WhiteElo "1904"]
[BlackElo "1817"]
[Annotator "NA"]
[PlyCount "83"]
[EventDate "2019.04.16"]
[EventType "team-tourn"]
[EventCountry "GRE"]
[SourceTitle "playchess.com"]
[Source "ChessBase"]
[SourceQuality "1"]
[WhiteTeam "Sweden"]
[BlackTeam "Scotland"]
[WhiteTeamCountry "SWE"]
[BlackTeamCountry "SCO"]
[TimeControl "40/5400+30:1800+30"]

1. d4 {[%emt 0:00:00]} Nf6 {[%emt 0:00:00]} 2. Nf3 {[%emt 0:00:00]} c5 {[%emt 0:00:00]} 3. d5 {[%emt 0:02:17]} d6 {[%emt 0:00:04]} 4. g3 {[%emt 0:00:53]} g6 {[%emt 0:00:03]} 5. Bg2 {[%emt 0:00:13]} Bg7 {[%emt 0:00:02]} 6. c4 {[%emt 0:00:16]} O-O {[%emt 0:00:15]} 7. Nc3 {[%emt 0:00:05]} Na6 {[%emt 0:00:45]} 8. O-O {[%emt 0:01:39]} Nc7 {[%emt 0:00:07]} 9. e4 {[%emt 0:04:02]} Rb8 {[%emt 0:00:33]} 10. a4 {[%emt 0:01:18]} b6 {[%emt 0:00:11]} 11. Re1 {[%emt 0:00:58]} a6 {[%emt 0:02:19]} 12. e5 {[%emt 0:03:54]} Nd7 {[%emt 0:15:12]} 13. exd6 {[%emt 0:04:14]} exd6 {[%emt 0:00:18]} 14. Bg5 {[%emt 0:04:37]} Nf6 {[%emt 0:03:40]} 15. Qd2 {[%emt 0:02:15]} Bf5 {[%emt 0:20:07]} 16. Nh4 {[%emt 0:05:20]} Qd7 {[%emt 0:01:23]} 17. Nxf5 {[%emt 0:05:27]} Qxf5 {[%emt 0:01:04]} 18. Re7 {[%emt 0:04:22]} Nfe8 {[%emt 0:06:33]} 19. Rae1 {[%emt 0:22:04]} f6 {[%emt 0:03:40]} 20. Bh6 {[%emt 0:03:27]} Rf7 {[%emt 0:11:29]} 21. Bxg7 {[%emt 0:01:35]} Kxg7 {[%emt 0:00:12]} 22. Rxf7+ {[%emt 0:07:09]} Kxf7 {[%emt 0:00:07]} 23. Qh6 {[%emt 0:01:23]} Qh5 {[%emt 0:00:54]} 24. Qxh5 {[%emt 0:02:45]} gxh5 {[%emt 0:00:08]} 25. Be4 {[%emt 0:02:40]} h6 {[%emt 0:01:06]} 26. Bd3 {[%emt 0:01:20]} Ng7 {[%emt 0:01:21]} 27. h4 {[%emt 0:03:53]} f5 {[%emt 0:04:16]} 28. Kg2 {[%emt 0:00:50]} Kf6 {[%emt 0:06:25]} 29. Kf3 {[%emt 0:01:11]} Rf8 {[%emt 0:01:13]} 30. Kf4 {[%emt 0:01:11]} Rf7 {[%emt 0:00:27]} 31. Nd1 {[%emt 0:03:41]} Kg6 {[%emt 0:03:28]} 32. Ne3 {[%emt 0:03:11]} Re7 {[%emt 0:04:14]} 33. Ra1 {[%emt 0:01:23]} a5 {[%emt 0:00:09]} 34. Rg1 {[%emt 0:01:46]} Re5 {[%emt 0:00:27]} 35. g4 {[%emt 0:00:31]} hxg4 {[%emt 0:00:53]} 36. Nxg4 {[%emt 0:01:57]} Nh5+ {[%emt 0:02:24]} 37. Kf3 {[%emt 0:00:12]} Re7 {[%emt 0:01:59]} 38. Ne3+ {[%emt 0:01:08]} Kf6 {[%emt 0:01:22]} 39. Nxf5 {[%emt 0:00:33]} Rd7 {[%emt 0:01:54]} 40. Nxh6 {[%emt 0:00:00]} Ng7 {[%emt 0:00:00]} 41. Rg6+ {[%emt 0:01:48]} Ke5 {[%emt 0:01:45]} 42. Ke3 {[%emt 0:01:16]} 1-0

[Event "World Senior chT-65 2019"]
[Site "Rhodes"]
[Date "2019.04.20"]
[Round "5.45"]
[White "Maki, Christer"]
[Black "Harestad, Thor Geir"]
[Result "0-1"]
[ECO "B20"]
[WhiteElo "1885"]
[BlackElo "2200"]
[Annotator "NA"]
[PlyCount "26"]
[EventDate "2019.04.16"]
[EventType "team-tourn"]
[EventCountry "GRE"]
[SourceTitle "playchess.com"]
[Source "ChessBase"]
[SourceQuality "1"]
[WhiteTeam "Sweden"]
[BlackTeam "Norway"]
[WhiteTeamCountry "SWE"]
[BlackTeamCountry "NOR"]
[TimeControl "40/5400+30:1800+30"]

1. e4 {[%emt 0:00:08]} c5 {[%emt 0:00:02]} 2. g3 {[%emt 0:12:47]} d5 3. exd5 {[%emt 0:01:22]} Qxd5 4. Qf3 {[%emt 0:05:53]} Nf6 5. Nc3 {[%emt 0:07:57]} Qxf3 {[%emt 0:03:59]} 6. Nxf3 {[%emt 0:00:00]} a6 7. Bg2 {[%emt 0:00:00]} Nc6 8. a3 {[%emt 0:00:00]} Bg4 9. Ne2 {[%emt 0:03:53]} e6 {[%emt 0:00:40]} 10. d3 {[%emt 0:00:40]} Be7 {[%emt 0:03:06]} 11. h3 {[%emt 0:01:29]} Bh5 {[%emt 0:14:33]} 12. O-O {[%emt 0:02:42]} O-O 13. Be3 {[%emt 0:02:10]} Rac8 {[%emt 0:06:12]} 0-1

[Event "World Senior chT-65 2019"]
[Site "Rhodes"]
[Date "2019.04.20"]
[Round "5.46"]
[White "Steedman, James"]
[Black "Dalling, Peter"]
[Result "1-0"]
[ECO "E12"]
[WhiteElo "2127"]
[BlackElo "1830"]
[Annotator "NA"]
[PlyCount "79"]
[EventDate "2019.04.16"]
[EventType "team-tourn"]
[EventCountry "GRE"]
[SourceTitle "playchess.com"]
[Source "ChessBase"]
[SourceQuality "1"]
[WhiteTeam "Norway"]
[BlackTeam "Sweden"]
[WhiteTeamCountry "NOR"]
[BlackTeamCountry "SWE"]
[TimeControl "40/5400+30:1800+30"]

1. d4 {[%emt 0:00:00]} Nf6 {[%emt 0:00:00]} 2. Nf3 {[%emt 0:00:00]} d5 {[%emt 0:00:00]} 3. c4 {[%emt 0:00:00]} e6 {[%emt 0:00:00]} 4. Bg5 {[%emt 0:00:38]} Be7 {[%emt 0:00:53]} 5. e3 {[%emt 0:00:53]} O-O {[%emt 0:00:20]} 6. Nc3 {[%emt 0:00:16]} Nbd7 {[%emt 0:03:38]} 7. Rc1 {[%emt 0:01:45]} b6 {[%emt 0:01:34]} 8. Bd3 {[%emt 0:01:30]} Bb7 {[%emt 0:03:27]} 9. O-O {[%emt 0:00:26]} c5 {[%emt 0:00:36]} 10. cxd5 {[%emt 0:02:58]} Nxd5 {[%emt 0:00:52]} 11. Bxe7 {[%emt 0:05:08]} Qxe7 {[%emt 0:00:53]} 12. Bb1 {[%emt 0:03:55]} Nxc3 {[%emt 0:07:14]} 13. bxc3 {[%emt 0:01:08]} Nf6 {[%emt 0:02:28]} 14. Ne5 {[%emt 0:02:08]} Rfd8 {[%emt 0:06:02]} 15. Qe2 {[%emt 0:02:22]} Rac8 {[%emt 0:03:59]} 16. Rfd1 {[%emt 0:11:48]} g6 {[%emt 0:12:48]} 17. Qb2 {[%emt 0:00:00]} Nh5 {[%emt 0:05:55]} 18. g4 {[%emt 0:07:42]} Ng7 {[%emt 0:03:05]} 19. e4 {[%emt 0:03:04]} Qg5 {[%emt 0:03:14]} 20. f3 {[%emt 0:04:31]} h5 {[%emt 0:06:39]} 21. h3 {[%emt 0:05:34]} hxg4 {[%emt 0:03:32]} 22. hxg4 {[%emt 0:01:14]} Nh5 {[%emt 0:01:31]} 23. Rc2 {[%emt 0:06:27]} Nf4 {[%emt 0:01:14]} 24. Rh2 {[%emt 0:00:26]} Ba8 {[%emt 0:06:47]} 25. Kf2 {[%emt 0:05:28]} Kf8 {[%emt 0:05:42]} 26. Rh7 {[%emt 0:05:01]} Rc7 {[%emt 0:02:25]} 27. Rdh1 {[%emt 0:02:58]} Qf6 {[%emt 0:01:51]} 28. Qb5 {[%emt 0:06:44]} cxd4 {[%emt 0:04:51]} 29. Rh8+ {[%emt 0:02:28]} Ke7 {[%emt 0:00:00]} 30. Rxd8 {[%emt 0:00:20]} Kxd8 {[%emt 0:00:00]} 31. cxd4 {[%emt 0:01:32]} g5 {[%emt 0:01:40]} 32. Qb4 {[%emt 0:02:35]} Qg7 {[%emt 0:03:25]} 33. Qd6+ {[%emt 0:05:40]} Kc8 {[%emt 0:00:18]} 34. Ke3 {[%emt 0:01:10]} Qg8 {[%emt 0:05:31]} 35. Kd2 {[%emt 0:02:49]} f6 {[%emt 0:00:47]} 36. Nd3 {[%emt 0:00:24]} Rc6 {[%emt 0:01:34]} 37. Qe7 {[%emt 0:02:33]} Nxd3 {[%emt 0:02:25]} 38. Bxd3 {[%emt 0:00:42]} f5 {[%emt 0:00:50]} 39. Rh7 {[%emt 0:00:00]} Qd8 {[%emt 0:00:00]} 40. Ba6+ {[%emt 0:00:00]} 1-0

[Event "World Senior chT-65 2019"]
[Site "Rhodes"]
[Date "2019.04.20"]
[Round "5.47"]
[White "Palsson, Bertil"]
[Black "Melkeraen, Terje"]
[Result "0-1"]
[ECO "A26"]
[WhiteElo "1785"]
[BlackElo "2006"]
[Annotator "NA"]
[PlyCount "77"]
[EventDate "2019.04.16"]
[EventType "team-tourn"]
[EventCountry "GRE"]
[SourceTitle "playchess.com"]
[Source "ChessBase"]
[SourceQuality "1"]
[WhiteTeam "Sweden"]
[BlackTeam "Norway"]
[WhiteTeamCountry "SWE"]
[BlackTeamCountry "NOR"]
[TimeControl "40/5400+30:1800+30"]

1. c4 {[%emt 0:00:00]} Nf6 {[%emt 0:01:50]} 2. Nf3 {[%emt 0:00:00]} g6 {[%emt 0:00:06]} 3. g3 {[%emt 0:00:11]} Bg7 {[%emt 0:00:11]} 4. Bg2 {[%emt 0:00:13]} O-O {[%emt 0:00:08]} 5. O-O {[%emt 0:02:24]} d6 {[%emt 0:00:06]} 6. Nc3 {[%emt 0:00:33]} Nc6 {[%emt 0:00:19]} 7. d3 {[%emt 0:01:33]} e5 {[%emt 0:00:13]} 8. Rb1 {[%emt 0:00:43]} Nh5 {[%emt 0:03:46]} 9. Bg5 {[%emt 0:05:20]} f6 {[%emt 0:00:49]} 10. Bd2 {[%emt 0:00:11]} f5 {[%emt 0:00:13]} 11. e4 {[%emt 0:08:14]} f4 {[%emt 0:09:16]} 12. Nd5 {[%emt 0:10:34]} Ne7 {[%emt 0:02:45]} 13. Bc3 {[%emt 0:02:41]} c6 {[%emt 0:05:31]} 14. Nxe7+ {[%emt 0:00:58]} Qxe7 {[%emt 0:00:11]} 15. b3 {[%emt 0:03:12]} c5 {[%emt 0:08:19]} 16. Rc1 {[%emt 0:03:16]} Be6 {[%emt 0:01:43]} 17. Rc2 {[%emt 0:00:17]} Rf7 {[%emt 0:03:08]} 18. Qe2 {[%emt 0:02:18]} Raf8 {[%emt 0:00:53]} 19. Qd1 {[%emt 0:00:37]} h6 {[%emt 0:01:44]} 20. Rc1 {[%emt 0:02:08]} Kh7 {[%emt 0:00:12]} 21. Rc2 {[%emt 0:00:21]} Bf6 {[%emt 0:03:33]} 22. Rc1 {[%emt 0:01:08]} Rg7 {[%emt 0:02:41]} 23. Nd2 {[%emt 0:04:24]} fxg3 {[%emt 0:05:21]} 24. hxg3 {[%emt 0:01:05]} Bg5 {[%emt 0:01:07]} 25. Rb1 {[%emt 0:01:23]} Rgf7 {[%emt 0:01:33]} 26. Nf3 {[%emt 0:02:08]} Bf6 {[%emt 0:07:16]} 27. Nh2 {[%emt 0:01:14]} Bg5 {[%emt 0:05:57]} 28. Bd2 {[%emt 0:04:53]} Kg7 {[%emt 0:05:37]} 29. Qc1 {[%emt 0:01:35]} Bxd2 {[%emt 0:02:59]} 30. Qxd2 {[%emt 0:00:01]} g5 {[%emt 0:02:48]} 31. Qe2 {[%emt 0:01:06]} Nf6 {[%emt 0:00:31]} 32. Bf3 {[%emt 0:10:52]} Qd7 {[%emt 0:00:54]} 33. Qe3 {[%emt 0:06:50]} Bh3 {[%emt 0:07:11]} 34. Bg2 {[%emt 0:03:29]} Kg6 {[%emt 0:01:39]} 35. Rbc1 {[%emt 0:08:29]} Kh7 {[%emt 0:01:16]} 36. Rce1 {[%emt 0:04:14]} Be6 {[%emt 0:05:43]} 37. Rc1 {[%emt 0:05:25]} Ng8 {[%emt 0:00:37]} 38. Bf3 {[%emt 0:02:39]} Ne7 {[%emt 0:02:57]} 39. Bh5 {[%emt 0:02:51]} 0-1

[Event "World Senior chT-65 2019"]
[Site "Rhodes"]
[Date "2019.04.21"]
[Round "6.2"]
[White "Berkovich, Mark A"]
[Black "Balashov, Yuri S"]
[Result "1/2-1/2"]
[ECO "E07"]
[WhiteElo "2332"]
[BlackElo "2470"]
[Annotator "ChessBase"]
[PlyCount "52"]
[EventDate "2019.04.16"]
[EventType "team-tourn"]
[EventCountry "GRE"]
[SourceTitle "playchess.com"]
[Source "ChessBase"]
[SourceQuality "1"]
[WhiteTeam "Israel"]
[BlackTeam "Russia"]
[WhiteTeamCountry "ISR"]
[BlackTeamCountry "RUS"]
[TimeControl "40/5400+30:1800+30"]

1. d4 {[%emt 0:00:00]} Nf6 {[%emt 0:00:00]} 2. Nf3 {[%emt 0:00:00]} e6 {[%emt 0:00:03]} 3. g3 {[%emt 0:00:00]} d5 {[%emt 0:01:28]} 4. Bg2 {[%emt 0:00:02]} Be7 {[%emt 0:01:50]} 5. c4 {[%emt 0:01:01]} O-O {[%emt 0:00:11]} 6. Nbd2 {[%emt 0:02:27]} Nbd7 {[%emt 0:01:17]} 7. O-O {[%emt 0:00:25]} b6 {[%emt 0:01:01]} 8. cxd5 {[%emt 0:07:05]} exd5 {[%emt 0:00:08]} 9. Ne5 {[%emt 0:00:54]} Bb7 {[%emt 0:00:52]} 10. Ndf3 {[%emt 0:00:25]} c5 {[%emt 0:03:17]} 11. Bf4 {[%emt 0:03:29]} Ne4 {[%emt 0:03:52]} 12. Qa4 {[%emt 0:03:38]} Nxe5 {[%emt 0:04:24]} 13. Nxe5 {[%emt 0:04:45]} Qe8 {[%emt 0:03:20]} 14. Qxe8 {[%emt 0:00:38]} Rfxe8 {[%emt 0:00:08]} 15. dxc5 {[%emt 0:00:41]} Bxc5 {[%emt 0:01:03]} 16. Nd3 {[%emt 0:01:20]} Bd4 {[%emt 0:03:58]} 17. Rad1 {[%emt 0:06:54]} Rac8 {[%emt 0:04:10]} 18. Bc1 {[%emt 0:07:49]} Bf6 {[%emt 0:11:20]} 19. e3 {[%emt 0:08:51]} d4 {[%emt 0:07:04]} 20. Rfe1 {[%emt 0:03:08]} dxe3 {[%emt 0:09:12]} 21. Bxe3 {[%emt 0:04:50]} h6 {[%emt 0:01:35]} 22. Nf4 {[%emt 0:05:20]} Bc6 {[%emt 0:03:32]} 23. Bd4 {[%emt 0:04:07]} Red8 {[%emt 0:07:35]} 24. Bxf6 {[%emt 0:00:59]} Rxd1 {[%emt 0:00:19]} 25. Rxd1 {[%emt 0:00:05]} Nxf6 {[%emt 0:00:21]} 26. Rc1 {[%emt 0:06:00]} Bd7 {[%emt 0:00:22]} 1/2-1/2